fUST/lending_fUST_20250603
["ID","MTS","AMOUNT","RATE_DAILY","PERIOD"]
[363926905,1748932233164,-500.0,0.00016432,2]
[363926906,1748932233174,-500.0,0.00016432,2]
[363926907,1748932233184,-500.0,0.00016432,2]
[363926908,1748932233195,-500.0,0.00016432,2]
[363926909,1748932233205,-500.0,0.00016432,2]
[363926910,1748932233216,-500.0,0.00016432,2]
[363926911,1748932233225,-500.0,0.00016432,2]
[363926912,1748932233236,-500.0,0.00016432,2]
[363926913,1748932233246,-500.0,0.00016432,2]
[363926914,1748932233255,-500.0,0.00016432,2]
[363926915,1748932233265,-500.0,0.00016432,2]
[363926916,1748932233275,-500.0,0.00016432,2]
[363926917,1748932233284,-500.0,0.00016432,2]
[363926918,1748932233293,-22586.78881896,0.00016433,2]
[363926919,1748932233303,-160.0,0.00016433,2]
[363926920,1748932233311,-440.0,0.00016438,2]
[363926921,1748932233321,-440.0,0.00016438,2]
[363926922,1748932233330,-442.95650153,0.00016438,2]
[363926923,1748932233339,-440.0,0.00016438,2]
[363926924,1748932233348,-440.0,0.00016438,2]
[363926925,1748932233359,-440.0,0.00016438,2]
[363926926,1748932233369,-440.0,0.00016438,2]
[363926927,1748932233379,-440.0,0.00016438,2]
[363926928,1748932233388,-440.0,0.00016438,2]
[363926929,1748932233398,-608.26,0.00016438,2]
[363926930,1748932233408,-440.0,0.00016438,2]
[363926931,1748932233417,-435.91555211,0.00016438,2]
[363926932,1748932233426,-1293.94,0.00016438,2]
[363926933,1748932233436,-430.0,0.00016438,2]
[363926934,1748932233445,-532.81,0.00016438,2]
[363926935,1748932233454,-187.81,0.00016438,2]
[363926936,1748932233463,-440.0,0.00016438,2]
[363926937,1748932233473,-779.34,0.00016438,2]
[363926938,1748932233482,-779.34,0.00016438,2]
[363926939,1748932233491,-779.34,0.00016438,2]
[363926940,1748932233500,-1238.34,0.00016438,2]
[363926941,1748932233510,-440.0,0.00016438,2]
[363926942,1748932233519,-962.33,0.00016438,2]
[363926943,1748932233528,-440.0,0.00016438,2]
[363926944,1748932233537,-1381.58,0.00016438,2]
[363926945,1748932233547,-1380.79,0.00016438,2]
[363926946,1748932233557,-440.0,0.00016438,2]
[363926947,1748932233567,-610.91,0.00016438,2]
[363926948,1748932233576,-1518.8,0.00016438,2]
[363926949,1748932233585,-440.0,0.00016438,2]
[363926950,1748932233594,-440.0,0.00016438,2]
[363926951,1748932233604,-440.0,0.00016438,2]
[363926952,1748932233613,-440.0,0.00016438,2]
[363926953,1748932233622,-885.58,0.00016438,2]
[363926954,1748932233632,-543.28,0.00016438,2]
[363926955,1748932233641,-440.0,0.00016438,2]
[363926956,1748932233650,-440.0,0.00016438,2]
[363926957,1748932233660,-440.0,0.00016438,2]
[363926958,1748932233669,-448.91,0.00016438,2]
[363926959,1748932233678,-516.37,0.00016438,2]
[363926960,1748932233688,-440.0,0.00016438,2]
[363926961,1748932233697,-440.0,0.00016438,2]
[363926962,1748932233706,-440.0,0.00016438,2]
[363926963,1748932233715,-615.64,0.00016438,2]
[363926964,1748932233724,-440.0,0.00016438,2]
[363926965,1748932233733,-440.0,0.00016438,2]
[363926966,1748932233742,-440.0,0.00016438,2]
[363926967,1748932233751,-779.34,0.00016711,2]
[363926968,1748932233761,-440.0,0.00016712,2]
[363926969,1748932233776,-440.0,0.00016712,2]
[363926970,1748932233786,-440.0,0.00016712,2]
[363926971,1748932233796,-440.0,0.00016712,2]
[363926972,1748932233807,-440.0,0.00016712,2]
[363926973,1748932233817,-440.0,0.00016712,2]
[363926974,1748932233827,-440.0,0.00016712,2]
[363926975,1748932233836,-440.0,0.00016712,2]
[363926976,1748932233848,-608.26,0.00016712,2]
[363926977,1748932233868,-440.0,0.00016712,2]
[363926978,1748932233880,-1293.94,0.00016712,2]
[363926979,1748932233891,-532.81,0.00016712,2]
[363926980,1748932233902,-440.0,0.00016712,2]
[363926981,1748932233912,-1238.34,0.00016712,2]
[363926982,1748932233922,-552.16560943,0.00016712,2]
[363926983,1748932233933,-962.33,0.00016712,2]
[363926984,1748932233943,-440.0,0.00016712,2]
[363926985,1748932233953,-1381.58,0.00016712,2]
[363926986,1748932233964,-1380.79,0.00016712,2]
[363926987,1748932233974,-440.0,0.00016712,2]
[363926988,1748932233984,-610.91,0.00016712,2]
[363926989,1748932233994,-1518.8,0.00016712,2]
[363926990,1748932234005,-440.0,0.00016712,2]
[363926991,1748932234014,-440.0,0.00016712,2]
[363926992,1748932234025,-885.58,0.00016712,2]
[363926993,1748932234035,-543.28,0.00016712,2]
[363926994,1748932234046,-440.0,0.00016712,2]
[363926995,1748932234056,-440.0,0.00016712,2]
[363926996,1748932234067,-440.0,0.00016712,2]
[363926997,1748932234078,-448.91,0.00016712,2]
[363926998,1748932234088,-516.37,0.00016712,2]
[363926999,1748932234098,-440.0,0.00016712,2]
[363927000,1748932234108,-440.0,0.00016712,2]
[363927001,1748932234118,-440.0,0.00016712,2]
[363927002,1748932234128,-615.64,0.00016712,2]
[363927003,1748932234139,-440.0,0.00016712,2]
[363927004,1748932234149,-440.0,0.00016712,2]
[363927005,1748932234161,-440.0,0.00016712,2]
[363927006,1748932234171,-151.0,0.00016821,2]
[363927007,1748932234181,-500.0,0.00016821,2]
[363927008,1748932234192,-198.0,0.00016848,2]
[363927009,1748932234202,-500.0,0.00016848,2]
[363927010,1748932234213,-500.0,0.00016868,2]
[363927011,1748932234222,-280.60327706,0.00016876,2]
[363927012,1748932234233,-1849.24974431,0.000169,2]
[363927013,1748932234243,-518.09,0.00016976,3]
[363927014,1748932234252,-779.34,0.00016985,2]
[363927015,1748932234263,-440.0,0.00016986,2]
[363927016,1748932234273,-440.0,0.00016986,2]
[363927017,1748932234283,-440.0,0.00016986,2]
[363927018,1748932234294,-440.0,0.00016986,2]
[363927019,1748932234304,-298.86892959,0.00016986,2]
[363927020,1748932234316,-440.0,0.00016986,2]
[363927021,1748932234327,-440.0,0.00016986,2]
[363927022,1748932234338,-440.0,0.00016986,2]
[363927023,1748932234350,-608.26,0.00016986,2]
[363927024,1748932234360,-440.0,0.00016986,2]
[363927025,1748932234370,-1293.94,0.00016986,2]
[363927026,1748932234381,-532.81,0.00016986,2]
[363927027,1748932234391,-440.0,0.00016986,2]
[363927028,1748932234402,-1238.34,0.00016986,2]
[363927029,1748932234412,-962.33,0.00016986,2]
[363927030,1748932234422,-440.0,0.00016986,2]
[363927031,1748932234432,-1381.58,0.00016986,2]
[363927032,1748932234442,-1380.79,0.00016986,2]
[363927033,1748932234453,-440.0,0.00016986,2]
[363927034,1748932234463,-610.91,0.00016986,2]
[363927035,1748932234475,-1518.8,0.00016986,2]
[363927036,1748932234485,-440.0,0.00016986,2]
[363927037,1748932234495,-390.0,0.00016986,2]
[363927038,1748932234505,-885.58,0.00016986,2]
[363927039,1748932234515,-543.28,0.00016986,2]
[363927040,1748932234529,-440.0,0.00016986,2]
[363927041,1748932234539,-440.0,0.00016986,2]
[363927042,1748932234549,-440.0,0.00016986,2]
[363927043,1748932234558,-448.91,0.00016986,2]
[363927044,1748932234568,-516.37,0.00016986,2]
[363927045,1748932234578,-440.0,0.00016986,2]
[363927046,1748932234588,-440.0,0.00016986,2]
[363927047,1748932234598,-440.0,0.00016986,2]
[363927048,1748932234608,-615.64,0.00016986,2]
[363927049,1748932234618,-440.0,0.00016986,2]
[363927050,1748932234628,-440.0,0.00016986,2]
[363927051,1748932234638,-440.0,0.00016986,2]
[363927052,1748932234648,-315.0,0.00017,10]
[363927053,1748932234658,-1849.24974425,0.00017141,2]
[363927054,1748932234667,-172.69,0.00017171,3]
[363927055,1748932234677,-690.75,0.00017181,3]
[363927056,1748932234686,-364.95672582,0.00017191,2]
[363927057,1748932234696,-500.22395642,0.00017191,2]
[363927058,1748932234706,-501.86867376,0.00017191,2]
[363927059,1748932234716,-345.37,0.00017205,3]
[363927060,1748932234726,-500.0,0.00017215,2]
[363927061,1748932234736,-779.34,0.00017259,2]
[363927062,1748932234746,-160.0,0.00017259,2]
[363927063,1748932234756,-440.0,0.0001726,2]
[363927064,1748932234768,-440.0,0.0001726,2]
[363927065,1748932234779,-440.0,0.0001726,2]
[363927066,1748932234789,-440.0,0.0001726,2]
[363927067,1748932234799,-440.0,0.0001726,2]
[363927068,1748932234810,-608.26,0.0001726,2]
[363927069,1748932234820,-440.0,0.0001726,2]
[363927070,1748932234830,-1293.94,0.0001726,2]
[363927071,1748932234839,-532.81,0.0001726,2]
[363927072,1748932234851,-440.0,0.0001726,2]
[363927073,1748932234861,-1238.34,0.0001726,2]
[363927074,1748932234871,-962.33,0.0001726,2]
[363927075,1748932234881,-440.0,0.0001726,2]
[363927076,1748932234892,-1381.58,0.0001726,2]
[363927077,1748932234902,-1380.79,0.0001726,2]
[363927078,1748932234912,-440.0,0.0001726,2]
[363927079,1748932234922,-610.91,0.0001726,2]
[363927080,1748932234932,-1518.8,0.0001726,2]
[363927081,1748932234942,-440.0,0.0001726,2]
[363927082,1748932234954,-885.58,0.0001726,2]
[363927083,1748932234965,-543.28,0.0001726,2]
[363927084,1748932234976,-440.0,0.0001726,2]
[363927085,1748932234986,-440.0,0.0001726,2]
[363927086,1748932234996,-440.0,0.0001726,2]
[363927087,1748932235005,-448.91,0.0001726,2]
[363927088,1748932235015,-516.37,0.0001726,2]
[363927089,1748932235025,-440.0,0.0001726,2]
[363927090,1748932235035,-440.0,0.0001726,2]
[363927091,1748932235045,-440.0,0.0001726,2]
[363927092,1748932235055,-615.64,0.0001726,2]
[363927093,1748932235065,-440.0,0.0001726,2]
[363927094,1748932235075,-440.0,0.0001726,2]
[363927095,1748932235086,-440.0,0.0001726,2]
[363927096,1748932235096,-1849.24974425,0.00017383,2]
[363927097,1748932235106,-500.0,0.00017394,2]
[363927098,1748932235116,-1612.95996425,0.00017434,2]
[363927099,1748932235126,-779.34,0.00017533,2]
[363927100,1748932235135,-440.0,0.00017534,2]
[363927101,1748932235145,-440.0,0.00017534,2]
[363927102,1748932235155,-440.0,0.00017534,2]
[363927103,1748932235165,-440.0,0.00017534,2]
[363927104,1748932235174,-440.0,0.00017534,2]
[363927105,1748932235185,-608.26,0.00017534,2]
[363927106,1748932235194,-440.0,0.00017534,2]
[363927107,1748932235204,-1293.94,0.00017534,2]
[363927108,1748932235214,-532.81,0.00017534,2]
[363927109,1748932235224,-440.0,0.00017534,2]
[363927110,1748932235233,-1238.34,0.00017534,2]
[363927111,1748932235243,-962.33,0.00017534,2]
[363927112,1748932235253,-440.0,0.00017534,2]
[363927113,1748932235263,-1381.58,0.00017534,2]
[363927114,1748932235272,-1380.79,0.00017534,2]
[363927115,1748932235281,-197.93623939,0.00017534,2]
[363927154,1748932238664,-500.0,0.00016432,2]
[363927155,1748932238675,-500.0,0.00016432,2]
[363927156,1748932238685,-500.0,0.00016432,2]
[363927157,1748932238695,-172.92795924,0.00016432,2]
[363927158,1748932238705,-500.0,0.00016432,2]
[363927159,1748932238715,-500.0,0.00016432,2]
[363927160,1748932238725,-581.36,0.00016438,2]
[363927161,1748932238735,-440.0,0.00016438,2]
[363927162,1748932238744,-390.0,0.00016438,2]
[363927163,1748932238755,-440.0,0.00016712,2]
[363927164,1748932238765,-440.0,0.00016986,2]
[363927166,1748932238778,-461.23,0.0001726,2]
[363927168,1748932238788,-242.06376061,0.00017534,2]
[363927169,1748932238798,-610.91,0.00017534,2]
[363927170,1748932238809,-1518.8,0.00017534,2]
[363927171,1748932238819,-440.0,0.00017534,2]
[363927172,1748932238829,-885.58,0.00017534,2]
[363927173,1748932238839,-543.28,0.00017534,2]
[363927174,1748932238848,-440.0,0.00017534,2]
[363927175,1748932238859,-443.29251388,0.00017534,2]
[363927176,1748932238870,-440.0,0.00017534,2]
[363927177,1748932238881,-448.91,0.00017534,2]
[363927179,1748932238890,-516.37,0.00017534,2]
[363927181,1748932238901,-461.09957922,0.00017534,2]
[363927183,1748932238910,-353.58908231,0.00017534,2]
[363927185,1748932238921,-440.0,0.00017534,2]
[363927187,1748932238930,-615.64,0.00017534,2]
[363927189,1748932238940,-440.0,0.00017534,2]
[363927191,1748932238950,-440.0,0.00017534,2]
[363927193,1748932238959,-440.0,0.00017534,2]
[363927195,1748932238969,-1849.24974425,0.00017624,2]
[363927197,1748932238979,-500.0,0.00017756,2]
[363927199,1748932238989,-440.0,0.00017808,2]
[363927201,1748932238998,-440.0,0.00017808,2]
[363927203,1748932239008,-608.26,0.00017808,2]
[363927204,1748932239017,-440.0,0.00017808,2]
[363927206,1748932239027,-1293.94,0.00017808,2]
[363927208,1748932239036,-440.0,0.00017808,2]
[363927210,1748932239047,-1238.34,0.00017808,2]
[363927211,1748932239057,-962.33,0.00017808,2]
[363927213,1748932239067,-440.0,0.00017808,2]
[363927216,1748932239077,-1381.58,0.00017808,2]
[363927217,1748932239087,-1380.79,0.00017808,2]
[363927218,1748932239097,-440.0,0.00017808,2]
[363927219,1748932239106,-610.91,0.00017808,2]
[363927220,1748932239116,-1518.8,0.00017808,2]
[363927221,1748932239126,-440.0,0.00017808,2]
[363927222,1748932239137,-885.58,0.00017808,2]
[363927223,1748932239147,-543.28,0.00017808,2]
[363927224,1748932239157,-440.0,0.00017808,2]
[363927225,1748932239168,-448.78071873,0.00017808,2]
[363927226,1748932239177,-448.91,0.00017808,2]
[363927227,1748932239187,-516.37,0.00017808,2]
[363927241,1748932239331,-440.0,0.00017808,2]
[363927243,1748932239342,-615.64,0.00017808,2]
[363927245,1748932239353,-440.0,0.00017808,2]
[363927247,1748932239362,-440.0,0.00017808,2]
[363927249,1748932239372,-440.0,0.00017808,2]
[363927251,1748932239382,-420.0,0.00017815,2]
[363927253,1748932239393,-1849.24974425,0.00017866,2]
[363927255,1748932239403,-1112.0,0.00017904,2]
[363927257,1748932239413,-1000.0,0.00017942,2]
[363927259,1748932239423,-208.6,0.00018,2]
[363927261,1748932239434,-1000.0,0.00018006,2]
[363927263,1748932239444,-1000.0,0.00018006,2]
[363927265,1748932239453,-1000.0,0.00018006,2]
[363927267,1748932239463,-1000.0,0.00018006,7]
[363927269,1748932239473,-1000.0,0.00018006,7]
[363927271,1748932239486,-1000.0,0.00018006,7]
[363927273,1748932239496,-1000.0,0.00018006,7]
[363927275,1748932239506,-1612.95996421,0.00018051,2]
[363927277,1748932239516,-779.34,0.00018081,2]
[363927279,1748932239526,-440.0,0.00018082,2]
[363927281,1748932239536,-440.0,0.00018082,2]
[363927284,1748932239547,-608.26,0.00018082,2]
[363927286,1748932239557,-440.0,0.00018082,2]
[363927288,1748932239567,-1293.94,0.00018082,2]
[363927290,1748932239577,-440.0,0.00018082,2]
[363927292,1748932239587,-1238.34,0.00018082,2]
[363927294,1748932239596,-962.33,0.00018082,2]
[363927296,1748932239606,-440.0,0.00018082,2]
[363927298,1748932239615,-1381.58,0.00018082,2]
[363927300,1748932239626,-1380.79,0.00018082,2]
[363927302,1748932239636,-610.91,0.00018082,2]
[363927304,1748932239646,-440.0,0.00018082,2]
[363927306,1748932239655,-1518.8,0.00018082,2]
[363927308,1748932239665,-440.0,0.00018082,2]
[363927310,1748932239675,-885.58,0.00018082,2]
[363927312,1748932239684,-543.28,0.00018082,2]
[363927314,1748932239694,-440.0,0.00018082,2]
[363927316,1748932239703,-448.91,0.00018082,2]
[363927318,1748932239714,-516.37,0.00018082,2]
[363927320,1748932239723,-418.09363616,0.00018082,2]
[363927322,1748932239733,-615.64,0.00018082,2]
[363927324,1748932239743,-440.0,0.00018082,2]
[363927326,1748932239753,-440.0,0.00018082,2]
[363927327,1748932239762,-440.0,0.00018082,2]
[363927329,1748932239779,-1849.24974425,0.00018107,2]
[363927331,1748932239793,-229.42821335,0.00018179,2]
[363927332,1748932239802,-212.86879254,0.00018179,2]
[363927333,1748932239814,-160.0,0.00018179,2]
[363927334,1748932239824,-842.5625,0.00018179,2]
[363927335,1748932239834,-160.0,0.00018179,2]
[363927336,1748932239845,-423.63107087,0.00018179,2]
[363927337,1748932239854,-160.0,0.00018179,2]
[363927338,1748932239865,-160.0,0.00018179,2]
[363927339,1748932239874,-160.0,0.00018179,2]
[363927340,1748932239886,-160.0,0.00018179,2]
[363927341,1748932239896,-12670.76136593,0.0001818,2]
[363927342,1748932239906,-1849.24974425,0.00018348,2]
[363927343,1748932239916,-779.34,0.00018355,2]
[363927344,1748932239926,-280.71521261,0.00018356,2]
[363927345,1748932239936,-340.15752433,0.00018356,2]
[363927347,1748932239947,-608.26,0.00018356,2]
[363927349,1748932239957,-440.0,0.00018356,2]
[363927350,1748932239967,-1293.94,0.00018356,2]
[363927351,1748932239977,-440.0,0.00018356,2]
[363927352,1748932239987,-1238.34,0.00018356,2]
[363927353,1748932239997,-962.33,0.00018356,2]
[363927354,1748932240007,-440.0,0.00018356,2]
[363927355,1748932240017,-1381.58,0.00018356,2]
[363927356,1748932240028,-1380.79,0.00018356,2]
[363927357,1748932240038,-610.91,0.00018356,2]
[363927358,1748932240048,-440.0,0.00018356,2]
[363927360,1748932240057,-1518.8,0.00018356,2]
[363927361,1748932240068,-440.0,0.00018356,2]
[363927362,1748932240078,-885.58,0.00018356,2]
[363927363,1748932240088,-543.28,0.00018356,2]
[363927364,1748932240106,-440.0,0.00018356,2]
[363927365,1748932240120,-448.91,0.00018356,2]
[363927366,1748932240130,-516.37,0.00018356,2]
[363927367,1748932240140,-615.64,0.00018356,2]
[363927368,1748932240149,-440.0,0.00018356,2]
[363927369,1748932240159,-440.0,0.00018356,2]
[363927370,1748932240169,-579.63549287,0.00018356,2]
[363927371,1748932240178,-500.0,0.00018413,2]
[363927372,1748932240188,-500.0,0.00018423,2]
[363927373,1748932240198,-500.0,0.00018423,2]
[363927374,1748932240208,-500.0,0.00018423,2]
[363927375,1748932240217,-500.0,0.00018478,2]
[363927376,1748932240227,-520.41100821,0.0001849,2]
[363927377,1748932240236,-500.0,0.00018511,2]
[363927378,1748932240245,-345.38,0.00018541,3]
[363927379,1748932240257,-1381.5,0.00018551,3]
[363927380,1748932240266,-690.74,0.00018575,3]
[363927381,1748932240276,-500.0,0.00018578,2]
[363927382,1748932240286,-500.0,0.00018578,2]
[363927383,1748932240296,-500.0,0.00018589,2]
[363927384,1748932240306,-500.0,0.00018589,2]
[363927385,1748932240316,-1849.24974425,0.0001859,2]
[363927386,1748932240326,-779.34,0.00018629,2]
[363927387,1748932240336,-608.26,0.0001863,2]
[363927388,1748932240347,-430.0,0.0001863,2]
[363927389,1748932240356,-1293.94,0.0001863,2]
[363927390,1748932240366,-440.0,0.0001863,2]
[363927391,1748932240375,-1238.34,0.0001863,2]
[363927392,1748932240384,-962.33,0.0001863,2]
[363927393,1748932240394,-440.0,0.0001863,2]
[363927394,1748932240405,-1381.58,0.0001863,2]
[363927395,1748932240415,-1380.79,0.0001863,2]
[363927396,1748932240425,-610.91,0.0001863,2]
[363927397,1748932240434,-440.0,0.0001863,2]
[363927399,1748932240444,-1518.8,0.0001863,2]
[363927400,1748932240454,-440.0,0.0001863,2]
[363927402,1748932240463,-885.58,0.0001863,2]
[363927404,1748932240472,-543.28,0.0001863,2]
[363927405,1748932240482,-440.0,0.0001863,2]
[363927406,1748932240491,-448.91,0.0001863,2]
[363927407,1748932240501,-516.37,0.0001863,2]
[363927408,1748932240510,-615.64,0.0001863,2]
[363927409,1748932240519,-440.0,0.0001863,2]
[363927410,1748932240530,-440.0,0.0001863,2]
[363927411,1748932240540,-510.89426034,0.00018641,2]
[363927412,1748932240550,-502.91607213,0.00018641,2]
[363927413,1748932240559,-1612.95996421,0.00018667,2]
[363927414,1748932240569,-500.0,0.00018691,2]
[363927415,1748932240579,-1849.24974425,0.00018831,2]
[363927416,1748932240589,-1759.81617934,0.000189,2]
[363927418,1748932240599,-608.26,0.00018904,2]
[363927419,1748932240608,-1293.94,0.00018904,2]
[363927421,1748932240618,-440.0,0.00018904,2]
[363927423,1748932240627,-1238.34,0.00018904,2]
[363927425,1748932240637,-962.33,0.00018904,2]
[363927427,1748932240647,-440.0,0.00018904,2]
[363927429,1748932240656,-1381.58,0.00018904,2]
[363927431,1748932240665,-1380.79,0.00018904,2]
[363927433,1748932240674,-610.91,0.00018904,2]
[363927435,1748932240685,-440.0,0.00018904,2]
[363927437,1748932240695,-1518.8,0.00018904,2]
[363927439,1748932240705,-440.0,0.00018904,2]
[363927441,1748932240715,-885.58,0.00018904,2]
[363927444,1748932240725,-543.28,0.00018904,2]
[363927445,1748932240735,-440.0,0.00018904,2]
[363927447,1748932240744,-448.91,0.00018904,2]
[363927449,1748932240753,-516.37,0.00018904,2]
[363927451,1748932240763,-615.64,0.00018904,2]
[363927453,1748932240777,-440.0,0.00018904,2]
[363927455,1748932240787,-440.0,0.00018904,2]
[363927457,1748932240797,-2444.26857088,0.00018927,2]
[363927459,1748932240806,-779.34,0.00018934,2]
[363927461,1748932240817,-522.35728032,0.00018961,2]
[363927463,1748932240826,-1008.35087263,0.00018971,2]
[363927465,1748932240836,-788.63107863,0.00018971,2]
[363927467,1748932240845,-1000.0,0.00018971,2]
[363927469,1748932240855,-207.4,0.00019029,2]
[363927471,1748932240865,-512.15365815,0.00019059,2]
[363927473,1748932240874,-1849.24974425,0.00019072,2]
[363927475,1748932240883,-193.77934823,0.00019126,2]
[363927477,1748932240893,-1004.90978063,0.00019126,2]
[363927479,1748932240902,-1000.0,0.00019137,2]
[363927481,1748932240911,-1000.0,0.00019137,2]
[363927483,1748932240921,-779.34,0.00019177,2]
[363927485,1748932240930,-440.0,0.00019178,2]
[363927487,1748932240940,-440.0,0.00019178,2]
[363927489,1748932240950,-440.0,0.00019178,2]
[363927491,1748932240959,-440.0,0.00019178,2]
[363927493,1748932240969,-440.0,0.00019178,2]
[363927495,1748932240978,-440.0,0.00019178,2]
[363927497,1748932240988,-440.0,0.00019178,2]
[363927499,1748932240997,-440.0,0.00019178,2]
[363927501,1748932241007,-440.0,0.00019178,2]
[363927502,1748932241016,-440.0,0.00019178,2]
[363927503,1748932241026,-440.0,0.00019178,2]
[363927504,1748932241035,-608.26,0.00019178,2]
[363927505,1748932241045,-1293.94,0.00019178,2]
[363927506,1748932241054,-440.0,0.00019178,2]
[363927507,1748932241064,-1238.34,0.00019178,2]
[363927508,1748932241073,-962.33,0.00019178,2]
[363927509,1748932241083,-440.0,0.00019178,2]
[363927510,1748932241093,-1381.58,0.00019178,2]
[363927511,1748932241103,-1380.79,0.00019178,2]
[363927512,1748932241112,-610.91,0.00019178,2]
[363927513,1748932241122,-440.0,0.00019178,2]
[363927514,1748932241132,-1518.8,0.00019178,2]
[363927515,1748932241143,-440.0,0.00019178,2]
[363927516,1748932241153,-885.58,0.00019178,2]
[363927517,1748932241163,-543.28,0.00019178,2]
[363927518,1748932241172,-440.0,0.00019178,2]
[363927519,1748932241181,-448.91,0.00019178,2]
[363927520,1748932241191,-516.37,0.00019178,2]
[363927521,1748932241201,-615.64,0.00019178,2]
[363927522,1748932241211,-440.0,0.00019178,2]
[363927523,1748932241220,-440.0,0.00019178,2]
[363927524,1748932241229,-223.155668,0.00019178,2]
[363927525,1748932241239,-1612.95996421,0.00019284,2]
[363927526,1748932241249,-1849.24974425,0.00019314,2]
[363927527,1748932241259,-779.34,0.00019451,2]
[363927528,1748932241268,-361.192082,0.00019452,2]
[363927529,1748932241278,-361.192082,0.00019452,2]
[363927530,1748932241287,-199.195395,0.00019452,2]
[363927531,1748932241298,-199.195395,0.00019452,2]
[363927532,1748932241307,-261.942965,0.00019452,2]
[363927533,1748932241317,-1277.44761,0.00019452,2]
[363927534,1748932241327,-298.189104,0.00019452,2]
[363927535,1748932241336,-298.189104,0.00019452,2]
[363927536,1748932241346,-440.0,0.00019452,2]
[363927537,1748932241355,-608.26,0.00019452,2]
[363927538,1748932241365,-1293.94,0.00019452,2]
[363927539,1748932241375,-314.71192728,0.00019452,2]
[363927540,1748932241384,-1238.34,0.00019452,2]
[363927541,1748932241395,-962.33,0.00019452,2]
[363927542,1748932241404,-435.61,0.00019452,2]
[363927543,1748932241414,-1381.58,0.00019452,2]
[363927544,1748932241424,-1380.79,0.00019452,2]
[363927545,1748932241433,-610.91,0.00019452,2]
[363927546,1748932241443,-440.0,0.00019452,2]
[363927547,1748932241452,-1518.8,0.00019452,2]
[363927548,1748932241462,-440.0,0.00019452,2]
[363927549,1748932241471,-885.58,0.00019452,2]
[363927550,1748932241481,-543.28,0.00019452,2]
[363927551,1748932241494,-440.0,0.00019452,2]
[363927552,1748932241504,-448.91,0.00019452,2]
[363927553,1748932241513,-516.37,0.00019452,2]
[363927554,1748932241523,-615.64,0.00019452,2]
[363927555,1748932241532,-440.0,0.00019452,2]
[363927556,1748932241543,-440.0,0.00019452,2]
[363927557,1748932241552,-1849.24974425,0.00019555,2]
[363927558,1748932241562,-441.479,0.00019611,2]
[363927559,1748932241572,-177.92407056,0.00019611,2]
[363927560,1748932241581,-500.0,0.00019675,2]
[363927561,1748932241591,-518.95928991,0.00019685,2]
[363927562,1748932241601,-151.0,0.00019726,2]
[363927563,1748932241611,-608.26,0.00019726,2]
[363927564,1748932241622,-1293.94,0.00019726,2]
[363927565,1748932241631,-1238.34,0.00019726,2]
[363927566,1748932241641,-962.33,0.00019726,2]
[363927567,1748932241651,-1381.58,0.00019726,2]
[363927568,1748932241661,-1380.79,0.00019726,2]
[363927569,1748932241671,-610.91,0.00019726,2]